[Event "17th Memorial Lezcano Montalvo 2025"]
[Site "Gran Canaria"]
[Date "2025.04.19"]
[Round "8.31"]
[White "Basualdo De Ornelas, Jorge"]
[Black "Rodriguez Melian, Jose Luis"]
[Result "*"]
[Annotator "NA"]
[ECO "A06"]
[WhiteElo "1794"]
[BlackElo "2029"]
[PlyCount "28"]
[EventDate "2025.04.13"]
[EventType "swiss"]
[EventCountry "ESP"]
[SourceTitle "playchess.com"]
[Source "ChessBase"]
[SourceQuality "1"]
[TimeControl "5400+30"]

1. Nf3 {[%emt 0:02:01]} d5 {[%emt 0:00:11]} 2. b3 {[%emt 0:00:45]} c5 {[%emt 0:01:24]} 3. e3 {[%emt 0:01:49]} Nc6 {[%emt 0:00:24]} 4. Bb2 {[%emt 0:02:19]} f6 {[%emt 0:00:17]} 5. d4 {[%emt 0:00:27]} cxd4 {[%emt 0:00:11]} 6. exd4 {[%emt 0:00:12]} e6 {[%emt 0:02:09]} 7. Bd3 {[%emt 0:02:48]} Bd6 {[%emt 0:00:04]} 8. O-O {[%emt 0:00:08]} Nge7 {[%emt 0:00:10]} 9. a3 {[%emt 0:00:15]} O-O {[%emt 0:00:05]} 10. c4 {[%emt 0:07:57]} Bd7 {[%emt 1:30:35]} 11. Re1 {[%emt 0:01:44]} Rc8 {[%emt 0:00:23]} 12. Nc3 {[%emt 0:03:40]} Bb8 {[%emt 0:02:06]} 13. Rc1 {[%emt 0:00:43]} Bf4 {[%emt 0:01:16]} 14. Rc2 {[%emt 0:02:29]} Na5 {[%emt 0:00:47]} *

[Event "17th Memorial Lezcano Montalvo 2025"]
[Site "Gran Canaria"]
[Date "2025.04.19"]
[Round "8.32"]
[White "Blanco Garcia Bajo, David"]
[Black "Basualdo De Ornelas, Jorge"]
[Result "0-1"]
[Annotator "RC"]
[ECO "D05"]
[WhiteElo "2098"]
[BlackElo "1794"]
[PlyCount "56"]
[EventDate "2025.04.13"]
[EventType "swiss"]
[EventCountry "ESP"]
[SourceTitle "playchess.com"]
[Source "ChessBase"]
[SourceQuality "1"]
[TimeControl "5400+30"]

1. e4 {[%emt 0:00:04]} e6 {[%emt 0:00:18]} 2. d4 {[%emt 0:00:07]} d5 {[%emt 0:00:06]} 3. Nd2 {[%emt 0:00:05]} h6 {[%emt 0:00:51]} 4. Bd3 {[%emt 0:00:45]} c5 {[%emt 0:00:45]} 5. dxc5 {[%emt 0:04:32]} Bxc5 {[%emt 0:00:19]} 6. Ngf3 {[%emt 0:04:41]} Nf6 {[%emt 0:00:08]} 7. Qe2 {[%emt 0:02:09]} O-O {[%emt 0:01:31]} 8. O-O {[%emt 0:02:52]} Nc6 {[%emt 0:02:01]} 9. c3 {[%emt 0:06:18]} Qc7 {[%emt 0:04:29]} 10. h3 {[%emt 0:17:44]} Re8 {[%emt 0:00:44]} 11. e5 {[%emt 0:02:12]} Nd7 {[%emt 0:00:05]} 12. Nb3 {[%emt 0:00:05]} Bf8 {[%emt 0:00:19]} 13. Re1 {[%emt 0:02:37]} f6 {[%emt 0:03:52]} 14. Bg6 {[%emt 0:05:09]} Re7 {[%emt 0:12:18]} 15. Bf4 {[%emt 0:06:30]} fxe5 {[%emt 0:11:23]} 16. Bg3 {[%emt 0:01:06]} a5 {[%emt 0:09:57]} 17. Nbd4 {[%emt 0:03:56]} Qb6 {[%emt 0:09:44]} 18. Nxc6 {[%emt 0:00:21]} bxc6 {[%emt 0:04:32]} 19. Bh4 {[%emt 0:07:43]} Ba6 {[%emt 0:00:09]} 20. Qc2 {[%emt 0:01:45]} e4 {[%emt 0:03:36]} 21. Bxe7 {[%emt 0:01:39]} Bxe7 {[%emt 0:00:08]} 22. Nd2 {[%emt 0:04:26]} Rf8 {[%emt 0:03:00]} 23. Nxe4 {[%emt 0:05:29]} dxe4 {[%emt 0:01:02]} 24. Bxe4 {[%emt 0:05:40]} Rxf2 {[%emt 0:01:02]} 25. Qb3 {[%emt 0:03:49]} Rf1+ {[%emt 0:03:47]} 26. Kh2 {[%emt 0:00:10]} Bd6+ {[%emt 0:00:15]} 27. g3 {[%emt 0:00:29]} Qf2+ {[%emt 0:00:18]} 28. Bg2 {[%emt 0:00:07]} Bxg3# {[%emt 0:00:39]} 0-1

[Event "17th Memorial Lezcano Montalvo 2025"]
[Site "Gran Canaria"]
[Date "2025.04.19"]
[Round "8.33"]
[White "Cruz Ramirez, Nauzet"]
[Black "Matos Espino, Carlos Silverio"]
[Result "1/2-1/2"]
[Annotator "RC"]
[ECO "A82"]
[WhiteElo "2076"]
[BlackElo "1731"]
[PlyCount "95"]
[EventDate "2025.04.13"]
[EventType "swiss"]
[EventCountry "ESP"]
[SourceTitle "playchess.com"]
[Source "ChessBase"]
[SourceQuality "1"]
[TimeControl "5400+30"]

1. d4 {[%emt 0:00:03]} f5 {[%emt 0:00:05]} 2. e4 {[%emt 0:00:05]} fxe4 {[%emt 0:00:56]} 3. Nc3 {[%emt 0:00:06]} g6 {[%emt 0:02:03]} 4. Nxe4 {[%emt 0:01:56]} d5 {[%emt 0:00:10]} 5. Nc3 {[%emt 0:01:31]} Bg7 {[%emt 0:00:58]} 6. Nf3 {[%emt 0:01:49]} Nf6 {[%emt 0:01:28]} 7. Bd3 {[%emt 0:04:28]} Nc6 {[%emt 0:01:32]} 8. h3 {[%emt 0:00:42]} O-O {[%emt 0:02:59]} 9. a3 {[%emt 0:15:58]} Nh5 {[%emt 1:24:49]} 10. Bb5 {[%emt 1:08:52]} Nf4 {[%emt 0:00:00]} 11. Bxf4 {[%emt 0:00:00]} Rxf4 {[%emt 0:00:00]} 12. Qd2 {[%emt 0:00:00]} Bh6 {[%emt 0:00:00]} 13. Ne2 {[%emt 0:00:00]} Rh4 {[%emt 0:00:00]} 14. Qc3 {[%emt 0:00:00]} Re4 {[%emt 0:00:00]} 15. O-O {[%emt 0:00:00]} a6 {[%emt 0:00:00]} 16. Bd3 {[%emt 0:00:00]} Re6 {[%emt 0:00:00]} 17. Nh2 {[%emt 0:00:00]} Rf6 {[%emt 0:00:00]} 18. b4 {[%emt 0:00:00]} Qd6 {[%emt 0:00:00]} 19. Rad1 {[%emt 0:00:00]} Bd7 {[%emt 0:00:00]} 20. Qb3 {[%emt 0:00:00]} b5 {[%emt 0:00:00]} 21. Be4 {[%emt 0:00:00]} Be6 {[%emt 0:00:00]} 22. Bf3 {[%emt 0:00:00]} Nd8 {[%emt 0:00:00]} 23. Nc1 {[%emt 0:00:00]} Bxc1 {[%emt 0:00:00]} 24. Rxc1 {[%emt 0:00:00]} h5 {[%emt 0:00:00]} 25. Rfe1 {[%emt 0:00:00]} c6 {[%emt 0:00:00]} 26. Qe3 {[%emt 0:00:00]} a5 {[%emt 0:00:00]} 27. c3 {[%emt 0:00:00]} Qf4 {[%emt 0:00:00]} 28. Qxf4 {[%emt 0:00:00]} Rxf4 {[%emt 0:00:00]} 29. Re3 {[%emt 0:00:00]} axb4 {[%emt 0:00:00]} 30. axb4 {[%emt 0:00:00]} Kf7 {[%emt 0:00:00]} 31. Rce1 {[%emt 0:00:00]} Ra7 {[%emt 0:00:00]} 32. g3 {[%emt 0:00:00]} Rf6 {[%emt 0:00:00]} 33. Bg2 {[%emt 0:00:00]} Bf5 {[%emt 0:00:00]} 34. Nf3 {[%emt 0:00:00]} Rc7 {[%emt 0:00:00]} 35. Bf1 {[%emt 0:00:00]} Ke8 {[%emt 0:00:00]} 36. Ne5 {[%emt 0:00:00]} Nf7 {[%emt 0:00:00]} 37. g4 {[%emt 0:00:00]} hxg4 {[%emt 0:00:00]} 38. hxg4 {[%emt 0:00:00]} Bc8 {[%emt 0:00:00]} 39. Bd3 {[%emt 0:00:00]} Nxe5 {[%emt 0:09:22]} 40. dxe5 {[%emt 0:00:00]} Rf4 {[%emt 0:00:50]} 41. Bxg6+ {[%emt 0:00:22]} Kf8 {[%emt 0:00:02]} 42. Rg3 {[%emt 0:02:25]} Rxg4 {[%emt 0:00:34]} 43. Kg2 {[%emt 0:01:33]} Kg7 {[%emt 0:01:19]} 44. Bd3 {[%emt 0:00:31]} Ra7 {[%emt 0:00:36]} 45. Ree3 {[%emt 0:00:46]} Rxg3+ {[%emt 0:00:46]} 46. Rxg3+ {[%emt 0:00:07]} Kf7 {[%emt 0:00:21]} 47. Be2 {[%emt 0:00:47]} Bf5 {[%emt 0:00:27]} 48. Re3 {[%emt 0:01:45]} 1/2-1/2

[Event "17th Memorial Lezcano Montalvo 2025"]
[Site "Gran Canaria"]
[Date "2025.04.19"]
[Round "8.34"]
[White "Pace, Gabriele"]
[Black "Marrero Rodriguez, Jorge"]
[Result "*"]
[Annotator "ChessBase"]
[ECO "D02"]
[WhiteElo "1895"]
[BlackElo "2251"]
[PlyCount "20"]
[EventDate "2025.04.13"]
[EventType "swiss"]
[EventCountry "ESP"]
[SourceTitle "playchess.com"]
[Source "ChessBase"]
[SourceQuality "1"]
[TimeControl "5400+30"]

1. d4 {[%emt 0:00:03]} d5 {[%emt 0:01:17]} 2. Nf3 {[%emt 1:31:27]} c5 {[%emt 0:00:16]} 3. g3 {[%emt 0:00:30]} Nf6 {[%emt 0:00:58]} 4. Bg2 {[%emt 0:00:40]} cxd4 {[%emt 0:00:23]} 5. Nxd4 {[%emt 0:00:08]} e5 {[%emt 1:30:06]} 6. Nb3 {[%emt 0:00:17]} h6 {[%emt 1:30:01]} 7. O-O {[%emt 0:02:25]} Nc6 {[%emt 0:02:23]} 8. Nc3 {[%emt 0:00:43]} Be6 {[%emt 0:05:50]} 9. Re1 {[%emt 0:09:22]} Rc8 {[%emt 0:08:51]} 10. a3 {[%emt 0:03:30]} Be7 {[%emt 0:00:18]} *

[Event "17th Memorial Lezcano Montalvo 2025"]
[Site "Gran Canaria"]
[Date "2025.04.19"]
[Round "8.34"]
[White "Quintero Hernandez, Marcos Jesus"]
[Black "Estremera Panos, Sergio"]
[Result "0-1"]
[Annotator "RC"]
[ECO "D02"]
[WhiteElo "1874"]
[BlackElo "2195"]
[PlyCount "82"]
[EventDate "2025.04.13"]
[EventType "swiss"]
[EventCountry "ESP"]
[SourceTitle "playchess.com"]
[Source "ChessBase"]
[SourceQuality "1"]
[TimeControl "5400+30"]

1. d4 {[%emt 0:00:03]} d5 {[%emt 0:01:17]} 2. Nf3 {[%emt 0:00:12]} c5 {[%emt 0:00:16]} 3. g3 {[%emt 0:00:30]} Nf6 {[%emt 0:00:58]} 4. Bg2 {[%emt 0:00:40]} cxd4 {[%emt 0:00:23]} 5. Nxd4 {[%emt 0:00:08]} e5 {[%emt 0:00:35]} 6. Nb3 {[%emt 0:00:17]} h6 {[%emt 0:00:39]} 7. O-O {[%emt 0:02:25]} Nc6 {[%emt 0:02:23]} 8. Nc3 {[%emt 0:00:43]} Be6 {[%emt 0:05:50]} 9. Re1 {[%emt 0:09:22]} Rc8 {[%emt 0:08:51]} 10. a3 {[%emt 0:03:30]} Be7 {[%emt 0:00:18]} 11. Bd2 {[%emt 0:06:23]} O-O {[%emt 0:02:53]} 12. e4 {[%emt 0:04:54]} d4 {[%emt 0:00:31]} 13. Ne2 {[%emt 0:00:06]} Qb6 {[%emt 0:01:15]} 14. Nbc1 {[%emt 0:07:43]} Qxb2 {[%emt 0:02:44]} 15. Nd3 {[%emt 0:00:02]} Qb6 {[%emt 0:01:31]} 16. f4 {[%emt 0:00:14]} Nd7 {[%emt 0:20:08]} 17. fxe5 {[%emt 0:03:25]} Ndxe5 {[%emt 0:11:47]} 18. Nef4 {[%emt 0:01:55]} Bg4 {[%emt 0:03:14]} 19. Qb1 {[%emt 0:00:07]} Nc4 {[%emt 0:02:25]} 20. Qc1 {[%emt 0:01:58]} Qd8 {[%emt 0:12:01]} 21. Nd5 {[%emt 0:08:03]} Nxd2 {[%emt 0:03:21]} 22. Qxd2 {[%emt 0:00:03]} Bg5 {[%emt 0:00:10]} 23. N3f4 {[%emt 0:01:00]} Re8 {[%emt 0:01:39]} 24. h4 {[%emt 0:00:35]} Bf6 {[%emt 0:01:55]} 25. Rab1 {[%emt 0:01:20]} b6 {[%emt 0:01:11]} 26. Rf1 {[%emt 0:05:56]} Be5 {[%emt 0:00:38]} 27. Qf2 {[%emt 0:02:25]} Qd6 {[%emt 0:01:05]} 28. Rb3 {[%emt 0:07:04]} Rf8 {[%emt 0:04:37]} 29. Bf3 {[%emt 0:02:13]} Be6 {[%emt 0:00:51]} 30. Bg2 {[%emt 0:02:51]} Na5 {[%emt 0:01:09]} 31. Rd3 {[%emt 0:00:41]} Nc4 {[%emt 0:00:38]} 32. h5 {[%emt 0:02:11]} Nxa3 {[%emt 0:02:04]} 33. Rd2 {[%emt 0:01:03]} Bxd5 {[%emt 0:01:40]} 34. Nxd5 {[%emt 0:00:33]} Bxg3 {[%emt 0:00:12]} 35. Qf3 {[%emt 0:00:34]} Rxc2 {[%emt 0:01:28]} 36. Rd3 {[%emt 0:00:32]} Bh2+ {[%emt 0:00:25]} 37. Kh1 {[%emt 0:00:06]} Nc4 {[%emt 0:00:12]} 38. Qg4 {[%emt 0:01:24]} Ne5 {[%emt 0:00:50]} 39. Qd1 {[%emt 0:00:30]} Nxd3 {[%emt 0:02:04]} 40. Qxd3 {[%emt 0:00:01]} Rc5 {[%emt 0:00:29]} 41. Qxd4 {[%emt 0:00:28]} Be5 {[%emt 0:00:08]} 0-1

[Event "17th Memorial Lezcano Montalvo 2025"]
[Site "Gran Canaria"]
[Date "2025.04.19"]
[Round "8.35"]
[White "Peraza Concepcion, Airam"]
[Black "Halldorsson, Halldor"]
[Result "0-1"]
[Annotator "RC"]
[ECO "B13"]
[WhiteElo "1712"]
[BlackElo "2103"]
[PlyCount "86"]
[EventDate "2025.04.13"]
[EventType "swiss"]
[EventCountry "ESP"]
[SourceTitle "playchess.com"]
[Source "ChessBase"]
[SourceQuality "1"]
[TimeControl "5400+30"]

1. e4 {[%emt 0:00:53]} g6 {[%emt 0:00:23]} 2. d4 {[%emt 0:01:09]} Bg7 {[%emt 0:00:20]} 3. Nf3 {[%emt 0:02:09]} c6 {[%emt 0:00:47]} 4. Bd3 {[%emt 0:06:05]} d5 {[%emt 0:01:25]} 5. exd5 {[%emt 0:01:13]} cxd5 {[%emt 0:00:18]} 6. c3 {[%emt 0:00:54]} Nf6 {[%emt 0:01:30]} 7. O-O {[%emt 0:04:29]} O-O {[%emt 0:00:32]} 8. Bf4 {[%emt 0:03:22]} Nc6 {[%emt 0:11:02]} 9. h3 Ne4 {[%emt 1:18:43]} 10. Bxe4 {[%emt 1:15:16]} dxe4 {[%emt 0:00:00]} 11. Nfd2 f5 {[%emt 0:00:00]} 12. Na3 e5 {[%emt 0:00:00]} 13. dxe5 Qh4 {[%emt 0:02:00]} 14. Bh2 {[%emt 0:02:00]} f4 {[%emt 0:00:00]} 15. Nxe4 f3 {[%emt 0:00:00]} 16. gxf3 Bxh3 {[%emt 0:00:00]} 17. Re1 Rad8 {[%emt 0:00:00]} 18. Qe2 {[%emt 0:00:00]} Nxe5 {[%emt 0:00:00]} 19. Nf6+ {[%emt 0:00:00]} Rxf6 20. Bxe5 {[%emt 0:00:00]} Qg5+ {[%emt 0:00:00]} 21. Bg3 {[%emt 0:00:00]} Rdf8 {[%emt 0:00:00]} 22. Qe3 {[%emt 0:01:45]} Qh5 {[%emt 0:00:00]} 23. Qe4 {[%emt 0:01:17]} Rxf3 {[%emt 0:00:00]} 24. Qh4 {[%emt 0:00:19]} Qf5 {[%emt 0:00:00]} 25. Qe4 {[%emt 0:00:19]} Qg5 {[%emt 0:00:00]} 26. Qh4 {[%emt 0:00:08]} Qf5 {[%emt 0:00:00]} 27. Qe4 {[%emt 0:00:05]} Rxf2 {[%emt 0:00:00]} 28. Bxf2 {[%emt 0:01:57]} Qxf2+ {[%emt 0:00:00]} 29. Kh1 {[%emt 0:00:24]} Qxb2 {[%emt 0:00:00]} 30. Nc4 {[%emt 0:00:48]} Qxc3 {[%emt 0:00:00]} 31. Rac1 {[%emt 0:00:31]} Qb4 {[%emt 0:00:00]} 32. Red1 {[%emt 0:00:36]} Bf5 {[%emt 0:00:00]} 33. Qd5+ {[%emt 0:00:31]} Kh8 {[%emt 0:00:00]} 34. Qg2 {[%emt 0:00:32]} Qe7 {[%emt 0:00:00]} 35. Re1 {[%emt 0:00:12]} Qh4+ {[%emt 0:00:00]} 36. Qh2 {[%emt 0:00:14]} Qd4 {[%emt 0:00:00]} 37. Qe2 {[%emt 0:00:46]} Bd3 {[%emt 0:00:00]} 38. Qe6 {[%emt 0:01:01]} Qh4+ {[%emt 0:00:00]} 39. Kg1 {[%emt 0:00:26]} Rf5 {[%emt 0:00:00]} 40. Qe8+ {[%emt 0:00:31]} Bf8 {[%emt 0:00:00]} 41. Re5 {[%emt 0:00:25]} Qg3+ {[%emt 0:00:00]} 42. Kh1 {[%emt 0:00:08]} Be4+ {[%emt 0:00:00]} 43. Rxe4 {[%emt 0:00:09]} Rh5+ {[%emt 0:00:00]} 0-1

[Event "17th Memorial Lezcano Montalvo 2025"]
[Site "Gran Canaria"]
[Date "2025.04.19"]
[Round "8.36"]
[White "Sanchez Montesdeoca, Isaac"]
[Black "Paquico Rodriguez, Ivan"]
[Result "*"]
[Annotator "ChessBase"]
[ECO "B73"]
[WhiteElo "1807"]
[BlackElo "2202"]
[PlyCount "31"]
[EventDate "2025.04.13"]
[EventType "swiss"]
[EventCountry "ESP"]
[SourceTitle "playchess.com"]
[Source "ChessBase"]
[SourceQuality "1"]
[TimeControl "5400+30"]

1. e4 {[%emt 1:31:00]} c5 {[%emt 1:31:00]} 2. Nc3 {[%emt 0:00:00]} Nc6 {[%emt 0:00:00]} 3. Nf3 {[%emt 0:00:00]} d6 {[%emt 0:00:00]} 4. d4 {[%emt 0:00:00]} cxd4 {[%emt 0:00:00]} 5. Nxd4 {[%emt 0:00:00]} Nf6 {[%emt 0:02:00]} 6. Be2 {[%emt 0:00:00]} g6 {[%emt 0:02:30]} 7. O-O {[%emt 0:00:00]} Bg7 {[%emt 0:03:00]} 8. Be3 {[%emt 0:00:00]} O-O {[%emt 0:00:00]} 9. f4 {[%emt 0:00:00]} Bd7 {[%emt 0:00:00]} 10. Bf3 {[%emt 0:00:00]} a6 {[%emt 0:00:00]} 11. Nd5 {[%emt 0:00:00]} Nxd5 {[%emt 0:00:00]} 12. exd5 {[%emt 0:05:30]} Na5 {[%emt 0:00:00]} 13. b3 {[%emt 0:00:00]} Rc8 {[%emt 0:00:00]} 14. c4 {[%emt 0:00:00]} b5 {[%emt 0:00:00]} 15. cxb5 {[%emt 0:00:00]} axb5 {[%emt 0:00:00]} 16. Rc1 {[%emt 0:00:00]} *

[Event "17th Memorial Lezcano Montalvo 2025"]
[Site "Gran Canaria"]
[Date "2025.04.19"]
[Round "8.36"]
[White "Sanchez Ramirez, Gustavo"]
[Black "Camino Carrio, Nicanor"]
[Result "1-0"]
[Annotator "RC"]
[ECO "B73"]
[WhiteElo "1780"]
[BlackElo "2045"]
[PlyCount "95"]
[EventDate "2025.04.13"]
[EventType "swiss"]
[EventCountry "ESP"]
[SourceTitle "playchess.com"]
[Source "ChessBase"]
[SourceQuality "1"]
[TimeControl "5400+30"]

1. e4 {[%emt 1:31:00]} c5 {[%emt 1:31:00]} 2. Nc3 {[%emt 0:00:00]} Nc6 {[%emt 0:00:00]} 3. Nf3 {[%emt 0:00:00]} d6 {[%emt 0:00:00]} 4. d4 {[%emt 0:00:00]} cxd4 {[%emt 0:00:00]} 5. Nxd4 {[%emt 0:00:00]} Nf6 {[%emt 0:00:00]} 6. Be2 {[%emt 0:00:00]} g6 {[%emt 0:00:00]} 7. O-O {[%emt 0:00:00]} Bg7 {[%emt 0:00:00]} 8. Be3 {[%emt 0:00:00]} O-O {[%emt 0:00:00]} 9. f4 {[%emt 0:00:00]} Bd7 {[%emt 0:00:00]} 10. Bf3 {[%emt 0:00:00]} a6 {[%emt 0:00:00]} 11. Nd5 {[%emt 0:00:00]} Nxd5 {[%emt 0:00:00]} 12. exd5 {[%emt 0:00:00]} Na5 {[%emt 0:00:00]} 13. b3 {[%emt 0:00:00]} Rc8 {[%emt 0:00:00]} 14. c4 {[%emt 0:00:00]} b5 {[%emt 0:00:00]} 15. cxb5 {[%emt 0:00:00]} axb5 {[%emt 0:00:00]} 16. Rc1 {[%emt 0:00:00]} e5 {[%emt 0:00:00]} 17. dxe6 {[%emt 0:00:00]} fxe6 {[%emt 0:00:00]} 18. Qd2 {[%emt 0:00:00]} d5 {[%emt 0:00:00]} 19. Qb4 {[%emt 0:00:00]} Nc6 {[%emt 0:00:00]} 20. Nxc6 {[%emt 0:00:00]} Bxc6 {[%emt 0:00:00]} 21. Bg4 {[%emt 0:00:00]} Re8 {[%emt 0:00:00]} 22. Bd4 {[%emt 0:00:00]} Qe7 {[%emt 0:00:00]} 23. Rc5 {[%emt 0:00:00]} Bd7 {[%emt 0:00:00]} 24. Rfc1 {[%emt 0:00:00]} Rxc5 {[%emt 0:00:00]} 25. Rc2 {[%emt 0:12:00]} Rc4 26. Rxc4 {[%emt 0:00:00]} Bf8 {[%emt 0:00:00]} 27. Rc5 {[%emt 0:00:00]} Qf6 {[%emt 0:13:00]} 28. Qd2 Qh4 {[%emt 0:00:00]} 29. h3 {[%emt 0:00:00]} Bxc5 {[%emt 0:00:00]} 30. Bxc5 {[%emt 0:00:00]} h5 {[%emt 0:00:00]} 31. Bf3 {[%emt 0:00:00]} Qf6 {[%emt 0:00:00]} 32. Bd4 {[%emt 0:00:00]} Qf5 {[%emt 0:00:00]} 33. Be5 {[%emt 0:00:00]} Rc8 {[%emt 0:00:00]} 34. Bb2 {[%emt 0:00:00]} Qb1+ {[%emt 0:00:00]} 35. Bd1 {[%emt 0:00:00]} Qe4 {[%emt 0:00:00]} 36. Bf3 {[%emt 0:00:00]} Rc2 {[%emt 0:00:00]} 37. Qa5 {[%emt 0:00:00]} Qe3+ {[%emt 0:00:00]} 38. Kh1 {[%emt 0:00:00]} Rxb2 {[%emt 0:00:00]} 39. Qd8+ {[%emt 0:00:00]} Kh7 {[%emt 0:00:00]} 40. Qxd7+ {[%emt 0:00:00]} Kh6 {[%emt 0:00:00]} 41. Qd6 {[%emt 0:00:00]} Rb1+ {[%emt 0:02:19]} 42. Kh2 {[%emt 0:00:00]} Qg1+ {[%emt 0:01:51]} 43. Kg3 {[%emt 0:00:00]} Qd4 {[%emt 0:00:36]} 44. Qd8 {[%emt 0:00:00]} Qg7 {[%emt 0:00:12]} 45. Qg5+ {[%emt 0:00:00]} Kh7 {[%emt 0:00:13]} 46. Be2 {[%emt 0:00:00]} b4 {[%emt 0:01:00]} 47. Bd3 {[%emt 0:00:00]} Rd1 {[%emt 0:00:51]} 48. Qxh5+ {[%emt 0:00:00]} 1-0

[Event "17th Memorial Lezcano Montalvo 2025"]
[Site "Gran Canaria"]
[Date "2025.04.19"]
[Round "8.37"]
[White "Schmitz, Andreas Arnold"]
[Black "Juan Miguel, Javier"]
[Result "1/2-1/2"]
[Annotator "RC"]
[ECO "B02"]
[WhiteElo "1967"]
[BlackElo "1803"]
[PlyCount "48"]
[EventDate "2025.04.13"]
[EventType "swiss"]
[EventCountry "ESP"]
[SourceTitle "playchess.com"]
[Source "ChessBase"]
[SourceQuality "1"]
[TimeControl "5400+30"]

1. e4 {[%emt 0:00:04]} d5 {[%emt 0:00:13]} 2. exd5 {[%emt 0:00:32]} Nf6 {[%emt 0:00:19]} 3. Nc3 {[%emt 0:01:02]} Nxd5 {[%emt 0:00:13]} 4. Bc4 {[%emt 0:02:17]} Nb6 {[%emt 0:00:18]} 5. Bb3 {[%emt 0:00:14]} Nc6 {[%emt 1:31:57]} 6. Qf3 {[%emt 0:01:37]} e6 {[%emt 0:00:00]} 7. Nge2 Bd6 {[%emt 0:01:00]} 8. d4 {[%emt 1:28:44]} O-O {[%emt 0:00:30]} 9. Nb5 {[%emt 0:00:30]} e5 {[%emt 0:00:30]} 10. Nxd6 {[%emt 0:00:30]} Qxd6 {[%emt 0:00:30]} 11. dxe5 {[%emt 0:00:00]} Nxe5 {[%emt 0:00:00]} 12. Qg3 {[%emt 0:00:00]} Re8 {[%emt 0:00:00]} 13. Bf4 {[%emt 0:00:00]} Qb4+ {[%emt 0:00:00]} 14. Bd2 {[%emt 0:00:00]} Qe4 {[%emt 0:00:00]} 15. O-O-O {[%emt 0:00:00]} Qxe2 {[%emt 0:00:00]} 16. Rde1 {[%emt 0:00:00]} Qb5 {[%emt 0:00:00]} 17. Bc3 {[%emt 0:00:00]} Ng6 {[%emt 0:00:00]} 18. h4 {[%emt 0:00:00]} Bd7 {[%emt 0:00:00]} 19. Rxe8+ {[%emt 0:00:00]} Rxe8 {[%emt 0:00:00]} 20. h5 {[%emt 0:00:00]} Ne5 {[%emt 0:00:00]} 21. Re1 {[%emt 0:00:00]} Ng4 {[%emt 0:00:00]} 22. Rxe8+ {[%emt 0:00:00]} Bxe8 {[%emt 0:00:00]} 23. Qxg4 {[%emt 0:00:00]} Qf1+ {[%emt 0:00:00]} 24. Kd2 {[%emt 0:00:00]} Qxf2+ {[%emt 0:00:00]} 1/2-1/2

[Event "17th Memorial Lezcano Montalvo 2025"]
[Site "Gran Canaria"]
[Date "2025.04.19"]
[Round "8.38"]
[White "Cruz Pino, Adrian"]
[Black "Guerra Aleman, Marcial"]
[Result "*"]
[Annotator "NA"]
[ECO "C50"]
[WhiteElo "2099"]
[BlackElo "1766"]
[PlyCount "31"]
[EventDate "2025.04.13"]
[EventType "swiss"]
[EventCountry "ESP"]
[SourceTitle "playchess.com"]
[Source "ChessBase"]
[SourceQuality "1"]
[TimeControl "5400+30"]

1. e4 {[%emt 0:04:37]} e5 {[%emt 0:00:04]} 2. Nf3 {[%emt 0:00:10]} Nc6 {[%emt 0:00:08]} 3. Bc4 {[%emt 0:00:08]} Bc5 {[%emt 0:00:05]} 4. a4 {[%emt 0:00:52]} Nf6 {[%emt 0:00:39]} 5. d3 {[%emt 0:00:18]} d6 {[%emt 0:00:33]} 6. O-O {[%emt 0:00:14]} O-O {[%emt 0:00:39]} 7. h3 {[%emt 0:00:37]} h6 {[%emt 0:00:37]} 8. Nbd2 {[%emt 1:27:34]} a6 {[%emt 0:03:57]} 9. Re1 {[%emt 0:00:26]} Re8 {[%emt 0:01:17]} 10. Nf1 {[%emt 0:01:24]} Be6 {[%emt 0:01:00]} 11. Bxe6 {[%emt 0:00:32]} fxe6 {[%emt 0:00:06]} 12. Be3 {[%emt 0:00:17]} Bxe3 {[%emt 0:01:52]} 13. Nxe3 {[%emt 0:00:24]} Qd7 {[%emt 0:02:52]} 14. c3 {[%emt 0:01:05]} d5 {[%emt 0:03:00]} 15. Qc2 {[%emt 0:04:11]} Rad8 {[%emt 0:06:07]} 16. Rad1 {[%emt 0:01:27]} *